[Event "Live Chess"]
[Site "Chess.com"]
[Date "2024.06.01"]
[Round "-"]
[White "bonantagulo"]
[Black "StoreySniper"]
[Result "0-1"]
[WhiteElo "2080"]
[BlackElo "2537"]
[TimeControl "300"]
[EndTime "14:21:57 PDT"]
[Termination "StoreySniper won on time"]

1. d4 {[%clk 0:04:53.2]} 1... g6 {[%clk 0:04:59]} 2. e4 {[%clk 0:04:52.2]} 2...
Bg7 {[%clk 0:04:58.7]} 3. Nc3 {[%clk 0:04:51]} 3... c5 {[%clk 0:04:58.3]} 4. Be3
{[%clk 0:04:50.1]} 4... Qa5 {[%clk 0:04:56.5]} 5. dxc5 {[%clk 0:04:45.4]} 5...
Bxc3+ {[%clk 0:04:54]} 6. bxc3 {[%clk 0:04:45.3]} 6... Qxc3+ {[%clk 0:04:53.5]}
7. Bd2 {[%clk 0:04:26.1]} 7... Qxc5 {[%clk 0:04:52.5]} 8. Nf3 {[%clk 0:04:24.6]}
8... Nf6 {[%clk 0:04:50.4]} 9. Bd3 {[%clk 0:04:21.8]} 9... b6 {[%clk 0:04:47.4]}
10. O-O {[%clk 0:04:18.8]} 10... Bb7 {[%clk 0:04:46.5]} 11. Qe2 {[%clk 0:04:11]}
11... d6 {[%clk 0:04:44.3]} 12. e5 {[%clk 0:04:00.2]} 12... dxe5 {[%clk
0:04:36.3]} 13. Nxe5 {[%clk 0:04:00.1]} 13... Nbd7 {[%clk 0:04:30]} 14. Bb5
{[%clk 0:03:39]} 14... Rd8 {[%clk 0:04:07.8]} 15. Bh6 {[%clk 0:02:54.1]} 15...
a6 {[%clk 0:03:37.4]} 16. Nxd7 {[%clk 0:02:30.7]} 16... Nxd7 {[%clk 0:03:32.9]}
17. Bxa6 {[%clk 0:02:26.1]} 17... Bxa6 {[%clk 0:03:17.5]} 18. Qxa6 {[%clk
0:02:26]} 18... Qh5 {[%clk 0:03:15.4]} 19. Bg7 {[%clk 0:02:22.7]} 19... Rg8
{[%clk 0:03:14.6]} 20. Bd4 {[%clk 0:02:05.9]} 20... Qa5 {[%clk 0:03:04.6]} 21.
Qe2 {[%clk 0:01:49]} 21... g5 {[%clk 0:02:53.1]} 22. Rfe1 {[%clk 0:01:45.9]}
22... e6 {[%clk 0:02:52.3]} 23. Rad1 {[%clk 0:01:18.4]} 23... g4 {[%clk
0:02:47.8]} 24. Qd3 {[%clk 0:00:57.2]} 24... Rg6 {[%clk 0:02:43.3]} 25. Bc3
{[%clk 0:00:47.8]} 25... Qc5 {[%clk 0:02:27.4]} 26. g3 {[%clk 0:00:43.3]} 26...
h5 {[%clk 0:02:22.4]} 27. Bb2 {[%clk 0:00:35.7]} 27... b5 {[%clk 0:02:12.1]} 28.
c3 {[%clk 0:00:29.8]} 28... Qc4 {[%clk 0:02:07.2]} 29. Qd2 {[%clk 0:00:28]}
29... Qc7 {[%clk 0:02:01.4]} 30. Ba3 {[%clk 0:00:26.8]} 30... Nb6 {[%clk
0:01:58.7]} 31. Qe3 {[%clk 0:00:25.9]} 31... Nd5 {[%clk 0:01:54.2]} 32. Qd4
{[%clk 0:00:22.2]} 32... Kd7 {[%clk 0:01:39.3]} 33. Re5 {[%clk 0:00:19.1]} 33...
Kc8 {[%clk 0:01:33.6]} 34. Rxh5 {[%clk 0:00:18.5]} 34... Nb6 {[%clk 0:01:25]}
35. Qxd8+ {[%clk 0:00:17.2]} 35... Qxd8 {[%clk 0:01:24.3]} 36. Rxd8+ {[%clk
0:00:17.1]} 36... Kxd8 {[%clk 0:01:24.1]} 37. Rxb5 {[%clk 0:00:15.7]} 37... Nd5
{[%clk 0:01:11.4]} 38. c4 {[%clk 0:00:15.1]} 38... Nc3 {[%clk 0:01:10.4]} 39.
Rb8+ {[%clk 0:00:12.7]} 39... Kc7 {[%clk 0:01:09.1]} 40. Rf8 {[%clk 0:00:12.3]}
40... Rf6 {[%clk 0:01:06.5]} 41. Bb2 {[%clk 0:00:11.2]} 41... Rf3 {[%clk
0:01:03.5]} 42. Bxc3 {[%clk 0:00:10]} 42... Rxc3 {[%clk 0:01:03.4]} 43. Rxf7+
{[%clk 0:00:09.6]} 43... Kd6 {[%clk 0:01:02.5]} 44. Rg7 {[%clk 0:00:08.9]} 44...
Rxc4 {[%clk 0:01:01.7]} 45. Kg2 {[%clk 0:00:08.5]} 45... Ra4 {[%clk 0:01:00.4]}
46. a3 {[%clk 0:00:05.9]} 46... Kd5 {[%clk 0:00:58.4]} 47. h4 {[%clk 0:00:05.1]}
47... gxh3+ {[%clk 0:00:57.2]} 48. Kxh3 {[%clk 0:00:05]} 48... Rxa3 {[%clk
0:00:56.5]} 49. f4 {[%clk 0:00:04.9]} 49... Ke4 {[%clk 0:00:53.6]} 50. Re7
{[%clk 0:00:04.3]} 50... Kf5 {[%clk 0:00:52.6]} 51. Rf7+ {[%clk 0:00:03.2]}
51... Kg6 {[%clk 0:00:51.9]} 52. Rf8 {[%clk 0:00:03.1]} 52... Kg7 {[%clk
0:00:50.6]} 53. Re8 {[%clk 0:00:03]} 53... Kf7 {[%clk 0:00:49.9]} 54. Rb8 {[%clk
0:00:02.9]} 54... Ra1 {[%clk 0:00:48.6]} 55. Rb7+ {[%clk 0:00:02.2]} 55... Kf6
{[%clk 0:00:47.7]} 56. Kg4 {[%clk 0:00:02.1]} 56... Ra5 {[%clk 0:00:46.2]} 57.
Rb8 {[%clk 0:00:02]} 57... Rc5 {[%clk 0:00:44.5]} 58. Rh8 {[%clk 0:00:01.6]}
58... Kg7 {[%clk 0:00:43.5]} 59. Rh5 {[%clk 0:00:01]} 59... Rc1 {[%clk
0:00:41.1]} 60. Rg5+ {[%clk 0:00:00.9]} 60... Kf6 {[%clk 0:00:40.4]} 61. Re5
{[%clk 0:00:00.8]} 61... Rg1 {[%clk 0:00:38.7]} 62. Kf3 {[%clk 0:00:00.2]} 62...
Rf1+ {[%clk 0:00:37.9]} 0-1

[Event "Live Chess"]
[Site "Chess.com"]
[Date "2024.06.01"]
[Round "-"]
[White "peteopeteo"]
[Black "crais6"]
[Result "0-1"]
[WhiteElo "1574"]
[BlackElo "1639"]
[TimeControl "300"]
[EndTime "14:22:01 PDT"]
[Termination "crais6 won by resignation"]

1. e4 {[%clk 0:04:58.9]} 1... c5 {[%clk 0:04:56.9]} 2. a3 {[%clk 0:04:57.9]}
2... Nc6 {[%clk 0:04:49.4]} 3. b4 {[%clk 0:04:57.8]} 3... cxb4 {[%clk
0:04:47.6]} 4. axb4 {[%clk 0:04:57.7]} 4... e6 {[%clk 0:04:42.7]} 5. c3 {[%clk
0:04:57.6]} 5... d5 {[%clk 0:04:38.9]} 6. exd5 {[%clk 0:04:52.1]} 6... exd5
{[%clk 0:04:35]} 7. Bb5 {[%clk 0:04:50.9]} 7... Nf6 {[%clk 0:04:31.3]} 8. Nf3
{[%clk 0:04:49.4]} 8... Bd6 {[%clk 0:04:28.7]} 9. O-O {[%clk 0:04:44.6]} 9...
O-O {[%clk 0:04:27.4]} 10. d4 {[%clk 0:04:40.9]} 10... Bd7 {[%clk 0:04:15]} 11.
h3 {[%clk 0:04:39.8]} 11... Qc7 {[%clk 0:04:10.6]} 12. Nbd2 {[%clk 0:04:31.3]}
12... Rfe8 {[%clk 0:04:09]} 13. Re1 {[%clk 0:04:21.1]} 13... a6 {[%clk
0:04:07.6]} 14. Bd3 {[%clk 0:04:18.9]} 14... h6 {[%clk 0:03:58.4]} 15. Nb3
{[%clk 0:04:04.6]} 15... Ne4 {[%clk 0:03:53.3]} 16. Bxe4 {[%clk 0:03:58.4]}
16... dxe4 {[%clk 0:03:49.3]} 17. Nfd2 {[%clk 0:03:55.9]} 17... f5 {[%clk
0:03:34.9]} 18. Nc5 {[%clk 0:03:54.9]} 18... Rad8 {[%clk 0:03:19.9]} 19. Nc4
{[%clk 0:03:46.2]} 19... Bc8 {[%clk 0:03:14.2]} 20. Qh5 {[%clk 0:03:31.2]} 20...
Qf7 {[%clk 0:02:55.4]} 21. Qxf7+ {[%clk 0:03:20.2]} 21... Kxf7 {[%clk
0:02:53.7]} 22. Nxd6+ {[%clk 0:02:55.8]} 22... Rxd6 {[%clk 0:02:50.3]} 23. Bf4
{[%clk 0:02:55.7]} 23... Rg6 {[%clk 0:02:40.7]} 24. Rad1 {[%clk 0:02:17.2]}
24... b6 {[%clk 0:02:31.7]} 25. Nb3 {[%clk 0:02:01.3]} 25... Bb7 {[%clk
0:02:25.7]} 26. d5 {[%clk 0:01:57.2]} 26... Ne5 {[%clk 0:02:23]} 27. Bxe5 {[%clk
0:01:47.4]} 27... Rxe5 {[%clk 0:02:20.4]} 28. c4 {[%clk 0:01:36.4]} 28... Rd6
{[%clk 0:02:13.5]} 29. Nd4 {[%clk 0:01:28.3]} 29... b5 {[%clk 0:02:06.7]} 30.
Nc6 {[%clk 0:01:18.6]} 30... Bxc6 {[%clk 0:02:00.9]} 31. dxc6 {[%clk 0:01:18.5]}
31... Rxc6 {[%clk 0:02:00]} 32. c5 {[%clk 0:01:13.6]} 32... a5 {[%clk
0:01:55.6]} 33. Rd7+ {[%clk 0:01:12.2]} 33... Kf6 {[%clk 0:01:50.8]} 34. Red1
{[%clk 0:01:04]} 34... axb4 {[%clk 0:01:47.1]} 35. R1d6+ {[%clk 0:01:03.9]}
35... Rxd6 {[%clk 0:01:42.4]} 36. Rxd6+ {[%clk 0:01:03.8]} 36... Ke7 {[%clk
0:01:39.8]} 37. Rg6 {[%clk 0:00:58.8]} 37... Rxc5 {[%clk 0:01:35.2]} 38. Rxg7+
{[%clk 0:00:57.7]} 38... Kf6 {[%clk 0:01:33.1]} 39. Rg3 {[%clk 0:00:56.5]} 39...
Rc3 {[%clk 0:01:30.1]} 40. Kf1 {[%clk 0:00:53.9]} 40... Rxg3 {[%clk 0:01:27.5]}
41. fxg3 {[%clk 0:00:53.8]} 41... b3 {[%clk 0:01:26.4]} 42. Ke2 {[%clk
0:00:53.4]} 42... b2 {[%clk 0:01:24.4]} 0-1

[Event "Live Chess"]
[Site "Chess.com"]
[Date "2024.06.01"]
[Round "-"]
[White "cymbalshift"]
[Black "Ferrarifan27"]
[Result "0-1"]
[WhiteElo "1469"]
[BlackElo "2074"]
[TimeControl "300"]
[EndTime "14:22:03 PDT"]
[Termination "Ferrarifan27 won by resignation"]

1. d4 {[%clk 0:04:58.2]} 1... Nf6 {[%clk 0:04:54]} 2. Nc3 {[%clk 0:04:56.7]}
2... d5 {[%clk 0:04:51.2]} 3. e4 {[%clk 0:04:56]} 3... dxe4 {[%clk 0:04:47.8]}
4. f3 {[%clk 0:04:55.1]} 4... exf3 {[%clk 0:04:45.1]} 5. Nxf3 {[%clk 0:04:55]}
5... Bg4 {[%clk 0:04:42.5]} 6. h3 {[%clk 0:04:53.3]} 6... Bh5 {[%clk 0:04:41]}
7. g4 {[%clk 0:04:52.3]} 7... Bg6 {[%clk 0:04:39.3]} 8. Ne5 {[%clk 0:04:51.9]}
8... e6 {[%clk 0:04:27]} 9. Qf3 {[%clk 0:04:50.1]} 9... Bb4 {[%clk 0:04:23.6]}
10. Be3 {[%clk 0:04:37.9]} 10... Be4 {[%clk 0:04:21]} 11. Qf2 {[%clk 0:04:31.5]}
11... Bxh1 {[%clk 0:04:19.9]} 0-1

[Event "Live Chess"]
[Site "Chess.com"]
[Date "2024.06.01"]
[Round "-"]
[White "RichardABates"]
[Black "Rusty_Bridges"]
[Result "1-0"]
[WhiteElo "2205"]
[BlackElo "1471"]
[TimeControl "300"]
[EndTime "14:22:21 PDT"]
[Termination "RichardABates won by resignation"]

1. d4 {[%clk 0:04:58]} 1... d5 {[%clk 0:04:54.9]} 2. c4 {[%clk 0:04:56.6]} 2...
e6 {[%clk 0:04:51.3]} 3. Nf3 {[%clk 0:04:55]} 3... Bd6 {[%clk 0:04:47.3]} 4. g3
{[%clk 0:04:53.4]} 4... Nf6 {[%clk 0:04:45.2]} 5. Bg2 {[%clk 0:04:52.5]} 5...
dxc4 {[%clk 0:04:43.3]} 6. O-O {[%clk 0:04:51.1]} 6... c6 {[%clk 0:04:40]} 7.
Nc3 {[%clk 0:04:49.6]} 7... b5 {[%clk 0:04:36.2]} 8. e4 {[%clk 0:04:48.5]} 8...
Bb7 {[%clk 0:04:31.2]} 9. e5 {[%clk 0:04:47.1]} 9... Bxe5 {[%clk 0:04:27.1]} 10.
dxe5 {[%clk 0:04:46]} 10... Qxd1 {[%clk 0:04:26]} 11. Rxd1 {[%clk 0:04:44.6]}
11... Nd5 {[%clk 0:04:24.9]} 12. Ne4 {[%clk 0:04:43.5]} 12... Nd7 {[%clk
0:04:21.9]} 13. Nd6+ {[%clk 0:04:42]} 1-0

[Event "Live Chess"]
[Site "Chess.com"]
[Date "2024.06.01"]
[Round "-"]
[White "upoe610"]
[Black "NeilDruggan73"]
[Result "1-0"]
[WhiteElo "2249"]
[BlackElo "1749"]
[TimeControl "300"]
[EndTime "14:22:22 PDT"]
[Termination "upoe610 won by checkmate"]

1. c4 {[%clk 0:04:57]} 1... Nf6 {[%clk 0:04:57.7]} 2. g3 {[%clk 0:04:49.7]} 2...
g6 {[%clk 0:04:57]} 3. Bg2 {[%clk 0:04:48.4]} 3... Bg7 {[%clk 0:04:56.5]} 4. Nc3
{[%clk 0:04:46.6]} 4... d6 {[%clk 0:04:56]} 5. d4 {[%clk 0:04:42.6]} 5... O-O
{[%clk 0:04:51.6]} 6. h3 {[%clk 0:04:41.8]} 6... c6 {[%clk 0:04:48.6]} 7. Nf3
{[%clk 0:04:36.4]} 7... Nbd7 {[%clk 0:04:47.5]} 8. e4 {[%clk 0:04:35.2]} 8...
Rb8 {[%clk 0:04:46]} 9. O-O {[%clk 0:04:34.5]} 9... e5 {[%clk 0:04:43.8]} 10.
Re1 {[%clk 0:04:30.6]} 10... Nh5 {[%clk 0:04:37.1]} 11. Bg5 {[%clk 0:04:18.4]}
11... f6 {[%clk 0:04:29.2]} 12. Be3 {[%clk 0:04:17]} 12... Nb6 {[%clk
0:04:14.2]} 13. b3 {[%clk 0:04:14.8]} 13... a5 {[%clk 0:04:09.1]} 14. Rc1 {[%clk
0:04:04.2]} 14... exd4 {[%clk 0:03:47.8]} 15. Bxd4 {[%clk 0:04:02.3]} 15... Be6
{[%clk 0:03:40.9]} 16. Be3 {[%clk 0:03:59.6]} 16... c5 {[%clk 0:03:38]} 17. g4
{[%clk 0:03:57.5]} 17... Qd7 {[%clk 0:03:16.3]} 18. gxh5 {[%clk 0:03:55.4]}
18... Bxh3 {[%clk 0:03:14.9]} 19. Nh2 {[%clk 0:03:51.8]} 19... Bxg2 {[%clk
0:03:12.4]} 20. Kxg2 {[%clk 0:03:49.4]} 20... gxh5 {[%clk 0:03:10]} 21. Qxh5
{[%clk 0:03:47.6]} 21... Kh8 {[%clk 0:03:09]} 22. Qf5 {[%clk 0:03:46.3]} 22...
Qf7 {[%clk 0:03:02.2]} 23. Ng4 {[%clk 0:03:42.9]} 23... Rg8 {[%clk 0:02:59.5]}
24. Rh1 {[%clk 0:03:40.3]} 24... Rbe8 {[%clk 0:02:50.9]} 25. Qxh7# {[%clk
0:03:37.8]} 1-0

[Event "Live Chess"]
[Site "Chess.com"]
[Date "2024.06.01"]
[Round "-"]
[White "ACM42"]
[Black "MellowAesthetic"]
[Result "1-0"]
[WhiteElo "2177"]
[BlackElo "2071"]
[TimeControl "300"]
[EndTime "14:22:33 PDT"]
[Termination "ACM42 won on time"]

1. e4 {[%clk 0:04:59.2]} 1... c5 {[%clk 0:04:57.8]} 2. Nf3 {[%clk 0:04:55.8]}
2... d6 {[%clk 0:04:56.4]} 3. d4 {[%clk 0:04:55.1]} 3... cxd4 {[%clk 0:04:56.3]}
4. Nxd4 {[%clk 0:04:54.6]} 4... Nf6 {[%clk 0:04:55.9]} 5. Nc3 {[%clk 0:04:53.9]}
5... g6 {[%clk 0:04:55.3]} 6. f4 {[%clk 0:04:52.5]} 6... Nc6 {[%clk 0:04:53.7]}
7. Be3 {[%clk 0:04:50.9]} 7... Bg7 {[%clk 0:04:52.3]} 8. Nxc6 {[%clk 0:04:49.9]}
8... bxc6 {[%clk 0:04:51.1]} 9. Be2 {[%clk 0:04:49.4]} 9... O-O {[%clk
0:04:49.9]} 10. O-O {[%clk 0:04:48.3]} 10... Qa5 {[%clk 0:04:43.2]} 11. h3
{[%clk 0:04:37.9]} 11... Rb8 {[%clk 0:04:40]} 12. Rb1 {[%clk 0:04:32.7]} 12...
Be6 {[%clk 0:03:49.3]} 13. a3 {[%clk 0:03:50]} 13... Rxb2 {[%clk 0:03:43.5]} 14.
Rxb2 {[%clk 0:03:46.3]} 14... Nxe4 {[%clk 0:03:42.7]} 15. Rb7 {[%clk 0:03:23.3]}
15... Qxc3 {[%clk 0:02:43.7]} 16. Bxa7 {[%clk 0:03:10.4]} 16... c5 {[%clk
0:02:41.2]} 17. Bf3 {[%clk 0:03:08.1]} 17... Nd2 {[%clk 0:01:39.5]} 18. Rxe7
{[%clk 0:02:57.9]} 18... Nxf1 {[%clk 0:01:29.2]} 19. Qxf1 {[%clk 0:02:44]} 19...
Qd4+ {[%clk 0:01:26.6]} 20. Kh1 {[%clk 0:02:39.1]} 20... Qxf4 {[%clk 0:01:25.7]}
21. Bb6 {[%clk 0:02:19.2]} 21... Be5 {[%clk 0:01:13.5]} 22. Qg1 {[%clk
0:02:14.5]} 22... Bxh3 {[%clk 0:00:43.6]} 23. Rxe5 {[%clk 0:02:12]} 23... dxe5
{[%clk 0:00:43]} 24. Bxc5 {[%clk 0:02:10.3]} 24... Rc8 {[%clk 0:00:35.3]} 25.
Be3 {[%clk 0:02:08.6]} 25... Qf5 {[%clk 0:00:18.1]} 26. Qd1 {[%clk 0:02:07.1]}
26... Rxc2 {[%clk 0:00:13.5]} 27. gxh3 {[%clk 0:01:59.8]} 27... Qxh3+ {[%clk
0:00:11.5]} 28. Kg1 {[%clk 0:01:56.9]} 28... Qg3+ {[%clk 0:00:02]} 29. Kf1
{[%clk 0:01:55.8]} 1-0

[Event "Live Chess"]
[Site "Chess.com"]
[Date "2024.06.01"]
[Round "-"]
[White "KeithArkell"]
[Black "Dhaydon19"]
[Result "1/2-1/2"]
[WhiteElo "2436"]
[BlackElo "2674"]
[TimeControl "300"]
[EndTime "14:22:46 PDT"]
[Termination "Game drawn by repetition"]

1. d4 {[%clk 0:04:57.9]} 1... e6 {[%clk 0:04:59.3]} 2. Nf3 {[%clk 0:04:57.1]}
2... d5 {[%clk 0:04:58.9]} 3. c4 {[%clk 0:04:56.4]} 3... Nf6 {[%clk 0:04:58.8]}
4. cxd5 {[%clk 0:04:55.9]} 4... exd5 {[%clk 0:04:58]} 5. Nc3 {[%clk 0:04:55.4]}
5... c6 {[%clk 0:04:57.5]} 6. Qc2 {[%clk 0:04:54.1]} 6... Be7 {[%clk 0:04:56.3]}
7. Bg5 {[%clk 0:04:53.1]} 7... O-O {[%clk 0:04:55.5]} 8. e3 {[%clk 0:04:52.5]}
8... Re8 {[%clk 0:04:54.3]} 9. Bd3 {[%clk 0:04:51.5]} 9... Nbd7 {[%clk
0:04:52.4]} 10. O-O {[%clk 0:04:50.1]} 10... Nf8 {[%clk 0:04:51.1]} 11. Bxf6
{[%clk 0:04:48.9]} 11... Bxf6 {[%clk 0:04:50.1]} 12. b4 {[%clk 0:04:48.5]} 12...
a6 {[%clk 0:04:47.9]} 13. a4 {[%clk 0:04:47.4]} 13... Bg4 {[%clk 0:04:47.3]} 14.
Nd2 {[%clk 0:04:46.4]} 14... Qd6 {[%clk 0:04:46]} 15. b5 {[%clk 0:04:44]} 15...
axb5 {[%clk 0:04:44.3]} 16. axb5 {[%clk 0:04:43.3]} 16... Rxa1 {[%clk
0:04:42.6]} 17. Rxa1 {[%clk 0:04:42.5]} 17... c5 {[%clk 0:04:37.7]} 18. dxc5
{[%clk 0:04:41.3]} 18... Qxc5 {[%clk 0:04:36]} 19. Nce4 {[%clk 0:04:19.7]} 19...
Qe7 {[%clk 0:04:27]} 20. Nxf6+ {[%clk 0:04:18.8]} 20... Qxf6 {[%clk 0:04:26.6]}
21. Nb3 {[%clk 0:04:14.2]} 21... Rc8 {[%clk 0:04:22.3]} 22. Qd2 {[%clk
0:04:00.6]} 22... Ne6 {[%clk 0:04:19.7]} 23. Rc1 {[%clk 0:03:57]} 23... Rxc1+
{[%clk 0:04:05.7]} 24. Qxc1 {[%clk 0:03:55.1]} 24... Qd8 {[%clk 0:04:04.8]} 25.
h3 {[%clk 0:03:52.1]} 25... Bh5 {[%clk 0:04:03.7]} 26. Qc3 {[%clk 0:03:50.5]}
26... Bg6 {[%clk 0:04:01.1]} 27. Bxg6 {[%clk 0:03:48.6]} 27... hxg6 {[%clk
0:04:00.3]} 28. Nd4 {[%clk 0:03:41.9]} 28... Qc7 {[%clk 0:03:57.8]} 29. Qd2
{[%clk 0:03:33.4]} 29... Nxd4 {[%clk 0:03:55.6]} 30. Qxd4 {[%clk 0:03:32.1]}
30... Qc1+ {[%clk 0:03:55]} 31. Kh2 {[%clk 0:03:31.6]} 31... Qc7+ {[%clk
0:03:54.5]} 32. g3 {[%clk 0:03:31.1]} 32... Qc4 {[%clk 0:03:48.9]} 33. Qb6
{[%clk 0:03:28.2]} 33... Qc8 {[%clk 0:03:39.6]} 34. Qd6 {[%clk 0:03:26.3]} 34...
Qf5 {[%clk 0:03:37.5]} 35. Qd8+ {[%clk 0:02:56.8]} 35... Kh7 {[%clk 0:03:34.6]}
36. Qh4+ {[%clk 0:02:55.1]} 36... Kg8 {[%clk 0:03:33.9]} 37. Qd8+ {[%clk
0:02:36.6]} 37... Kh7 {[%clk 0:03:31.6]} 38. Qh4+ {[%clk 0:02:29.8]} 38... Kg8
{[%clk 0:03:29.4]} 39. Qd8+ {[%clk 0:02:14]} 1/2-1/2

[Event "Live Chess"]
[Site "Chess.com"]
[Date "2024.06.01"]
[Round "-"]
[White "booktrunk"]
[Black "dl_chess"]
[Result "1-0"]
[WhiteElo "1410"]
[BlackElo "1181"]
[TimeControl "300"]
[EndTime "14:22:52 PDT"]
[Termination "booktrunk won on time"]

1. d4 {[%clk 0:04:49.6]} 1... Nf6 {[%clk 0:04:57.5]} 2. c4 {[%clk 0:04:42.9]}
2... g6 {[%clk 0:04:56.1]} 3. Nf3 {[%clk 0:04:40.3]} 3... Bg7 {[%clk 0:04:55]}
4. g3 {[%clk 0:04:38.7]} 4... O-O {[%clk 0:04:52]} 5. Bg2 {[%clk 0:04:37.6]}
5... d6 {[%clk 0:04:51.2]} 6. O-O {[%clk 0:04:35]} 6... e5 {[%clk 0:04:49.4]} 7.
dxe5 {[%clk 0:04:33.7]} 7... dxe5 {[%clk 0:04:48]} 8. Qxd8 {[%clk 0:04:32.1]}
8... Rxd8 {[%clk 0:04:44.3]} 9. Nxe5 {[%clk 0:04:30.9]} 9... Re8 {[%clk
0:04:10.9]} 10. f4 {[%clk 0:04:18.5]} 10... Nbd7 {[%clk 0:03:52.6]} 11. Nxd7
{[%clk 0:04:14]} 11... Bxd7 {[%clk 0:03:48.5]} 12. Re1 {[%clk 0:04:10.6]} 12...
c6 {[%clk 0:03:45.4]} 13. Nc3 {[%clk 0:04:07.5]} 13... Be6 {[%clk 0:03:41.5]}
14. b3 {[%clk 0:04:04.4]} 14... Rad8 {[%clk 0:03:40.1]} 15. Bb2 {[%clk
0:04:02.6]} 15... Ng4 {[%clk 0:03:32.3]} 16. Rad1 {[%clk 0:03:54.1]} 16... Ne3
{[%clk 0:03:25.2]} 17. Rxd8 {[%clk 0:03:51.6]} 17... Rxd8 {[%clk 0:03:22.9]} 18.
Bf3 {[%clk 0:03:49.1]} 18... Bh3 {[%clk 0:03:00.9]} 19. Na4 {[%clk 0:03:41.3]}
19... Bxb2 {[%clk 0:02:53.5]} 20. Nxb2 {[%clk 0:03:39.9]} 20... Rd2 {[%clk
0:02:52.1]} 21. Rb1 {[%clk 0:03:35.2]} 21... Bg4 {[%clk 0:02:28.1]} 22. Kf2
{[%clk 0:03:20.1]} 22... Bxf3 {[%clk 0:01:23.7]} 23. Kxe3 {[%clk 0:03:14.5]}
23... Be4 {[%clk 0:00:49.9]} 24. Nd3 {[%clk 0:02:54]} 24... Bxd3 {[%clk
0:00:46.4]} 25. Kxd2 {[%clk 0:02:52.2]} 25... Bxb1 {[%clk 0:00:45]} 26. a3
{[%clk 0:02:51]} 26... Bf5 {[%clk 0:00:42.6]} 27. e3 {[%clk 0:02:47.3]} 27... h5
{[%clk 0:00:41.7]} 28. Kc3 {[%clk 0:02:44.8]} 28... Kf8 {[%clk 0:00:40.8]} 29.
Kd4 {[%clk 0:02:43.9]} 29... Ke7 {[%clk 0:00:39.7]} 30. Ke5 {[%clk 0:02:43]}
30... Be6 {[%clk 0:00:36.9]} 31. e4 {[%clk 0:02:37.2]} 31... f6+ {[%clk
0:00:34.6]} 32. Kd4 {[%clk 0:02:35.3]} 32... b6 {[%clk 0:00:32.9]} 33. b4 {[%clk
0:02:32.8]} 33... Kd6 {[%clk 0:00:30.5]} 34. e5+ {[%clk 0:02:29.3]} 34... fxe5+
{[%clk 0:00:28.7]} 35. fxe5+ {[%clk 0:02:27.9]} 35... Ke7 {[%clk 0:00:26.6]} 36.
a4 {[%clk 0:02:25.8]} 36... Bf5 {[%clk 0:00:21.2]} 37. a5 {[%clk 0:02:19.8]}
37... bxa5 {[%clk 0:00:17]} 38. bxa5 {[%clk 0:02:18]} 38... Ke6 {[%clk
0:00:13.4]} 39. Kc5 {[%clk 0:02:16.3]} 39... Kd7 {[%clk 0:00:12.4]} 40. Kd4
{[%clk 0:02:12.4]} 40... Be6 {[%clk 0:00:11.5]} 41. c5 {[%clk 0:02:09.7]} 41...
Bd5 {[%clk 0:00:09.1]} 42. Ke3 {[%clk 0:02:07.5]} 42... Ke6 {[%clk 0:00:08.3]}
43. Kf4 {[%clk 0:02:06.5]} 43... a6 {[%clk 0:00:05.3]} 44. h3 {[%clk 0:02:03.6]}
44... Bc4 {[%clk 0:00:01.4]} 45. g4 {[%clk 0:02:00.3]} 45... Bd5 {[%clk
0:00:01.3]} 46. gxh5 {[%clk 0:01:57.6]} 46... gxh5 {[%clk 0:00:01.2]} 47. h4
{[%clk 0:01:56.1]} 1-0

[Event "Live Chess"]
[Site "Chess.com"]
[Date "2024.06.01"]
[Round "-"]
[White "WorcesterYork"]
[Black "koekoekoe"]
[Result "1-0"]
[WhiteElo "2495"]
[BlackElo "2009"]
[TimeControl "300"]
[EndTime "14:22:55 PDT"]
[Termination "WorcesterYork won by resignation"]

1. d4 {[%clk 0:04:57.4]} 1... d5 {[%clk 0:04:59.9]} 2. c4 {[%clk 0:04:56.3]}
2... Nf6 {[%clk 0:04:59.8]} 3. cxd5 {[%clk 0:04:54.7]} 3... Nxd5 {[%clk
0:04:59.6]} 4. Nf3 {[%clk 0:04:53.6]} 4... Bf5 {[%clk 0:04:57.3]} 5. Qb3 {[%clk
0:04:51.9]} 5... Nb6 {[%clk 0:04:54.6]} 6. Nc3 {[%clk 0:04:50.4]} 6... e6 {[%clk
0:04:52.4]} 7. e4 {[%clk 0:04:49]} 7... Bg6 {[%clk 0:04:51.3]} 8. Be3 {[%clk
0:04:48.1]} 8... Be7 {[%clk 0:04:48.3]} 9. Rd1 {[%clk 0:04:47]} 9... O-O {[%clk
0:04:42.8]} 10. Be2 {[%clk 0:04:26.8]} 10... c6 {[%clk 0:04:33]} 11. h4 {[%clk
0:04:24.9]} 11... h6 {[%clk 0:04:30.2]} 12. Ne5 {[%clk 0:04:20.7]} 12... Bh7
{[%clk 0:04:25.2]} 13. g3 {[%clk 0:04:18.8]} 13... N8d7 {[%clk 0:04:23.9]} 14.
f4 {[%clk 0:04:17.2]} 14... Nxe5 {[%clk 0:04:18.9]} 15. dxe5 {[%clk 0:04:16]}
15... Qc7 {[%clk 0:04:18.4]} 16. g4 {[%clk 0:04:11.8]} 16... Rad8 {[%clk
0:04:10.9]} 17. g5 {[%clk 0:04:11.1]} 17... Rxd1+ {[%clk 0:04:09.6]} 18. Qxd1
{[%clk 0:04:09.9]} 18... Rd8 {[%clk 0:04:08.7]} 19. Qc2 {[%clk 0:04:09.1]} 19...
Kh8 {[%clk 0:03:52.6]} 20. Kf2 {[%clk 0:04:05.7]} 20... Bb4 {[%clk 0:03:29.4]}
21. Kf3 {[%clk 0:03:59.3]} 21... h5 {[%clk 0:03:14.4]} 22. Rd1 {[%clk
0:03:57.8]} 22... Kg8 {[%clk 0:02:53.9]} 23. a3 {[%clk 0:03:56.4]} 23... Bxc3
{[%clk 0:02:51.7]} 24. Qxc3 {[%clk 0:03:54.7]} 24... Kf8 {[%clk 0:02:51]} 25.
Rxd8+ {[%clk 0:03:51.8]} 25... Qxd8 {[%clk 0:02:50.1]} 26. Qd4 {[%clk
0:03:51.3]} 26... Ke8 {[%clk 0:02:44]} 27. Qxd8+ {[%clk 0:03:50.4]} 27... Kxd8
{[%clk 0:02:43.9]} 28. b3 {[%clk 0:03:48]} 28... Nd7 {[%clk 0:02:37.4]} 29. b4
{[%clk 0:03:38.4]} 29... b6 {[%clk 0:02:35.5]} 30. Bd2 {[%clk 0:03:33.7]} 30...
c5 {[%clk 0:02:30.6]} 31. Ke3 {[%clk 0:03:33.6]} 31... Kc7 {[%clk 0:02:28.1]}
32. Bxh5 {[%clk 0:03:29.5]} 32... f6 {[%clk 0:02:23.9]} 33. exf6 {[%clk
0:03:27.5]} 33... gxf6 {[%clk 0:02:22.6]} 34. g6 {[%clk 0:03:27]} 34... Bg8
{[%clk 0:02:22]} 35. Bc3 {[%clk 0:03:23.9]} 35... Kd6 {[%clk 0:02:16.9]} 36. Be2
{[%clk 0:03:21.9]} 36... cxb4 {[%clk 0:02:07.1]} 37. axb4 {[%clk 0:03:20.6]}
37... e5 {[%clk 0:01:58.4]} 38. f5 {[%clk 0:03:10]} 38... Nb8 {[%clk 0:01:38.1]}
39. h5 {[%clk 0:03:09.9]} 39... Nc6 {[%clk 0:01:31.8]} 40. h6 {[%clk 0:03:08.8]}
40... Nd4 {[%clk 0:01:28.8]} 41. Bxd4 {[%clk 0:03:07.6]} 41... exd4+ {[%clk
0:01:28.7]} 42. Kxd4 {[%clk 0:03:07.2]} 42... Ke7 {[%clk 0:01:26.3]} 43. h7
{[%clk 0:03:06.3]} 1-0